bitfinex-derivatives/quotes_ETHF0:USTF0_20240913
["timestamp","ask_amount","ask_price","bid_price","bid_amount"]
[1726242822428,0.4153,2407.6,2407.4,0.41531]
[1726242822630,0.4153,2407.6,2407.1,3.2078]
[1726242822631,0.41529,2407.6,2407.1,3.2078]
[1726242822827,0.4153,2407.5,2406.9,1.9585]
[1726242823031,0.41533,2407.4,2407.1,3.2078]
[1726242823232,1.03822,2407.6,2407.1,3.2078]
[1726242823434,10.2148,2407.8,2407.1,3.62316]
[1726242823435,0.41535,2407.3,2407.1,3.62316]
[1726242823632,10.2148,2407.8,2407.4,0.41531]
[1726242823940,11.25295,2407.8,2407.3,0.41533]
[1726242824138,0.41533,2407.4,2407.2,0.41534]
[1726242824331,1.03824,2407.6,2407.2,0.41535]
[1726242824643,0.41534,2407.3,2407.1,3.62316]
[1726242825034,0.41535,2407.2,2407.1,3.2078]
[1726242825536,4.1544,2407.2,2407.1,3.2078]
[1726242825837,1.03827,2407.5,2406.9,0.4154]
[1726242825838,1.03833,2407.4,2406.9,0.4154]
[1726242826230,1.03833,2407.4,2406.7,3.2078]
[1726242826231,0.41541,2406.9,2406.7,3.2078]
[1726242826433,0.41542,2406.9,2406.4,3.2078]
[1726242826635,0.41543,2406.8,2406.6,0.41545]
[1726242826836,0.41543,2406.8,2406.4,3.2078]
[1726242827031,1.03848,2407.0,2406.5,0.41546]
[1726242827240,0.41543,2406.8,2406.4,3.2078]
[1726242827437,0.41541,2406.9,2406.7,0.41543]
[1726242827738,0.41544,2406.7,2406.5,0.41546]
[1726242827940,0.41543,2406.8,2406.6,0.41545]
[1726242828241,0.41546,2406.6,2406.4,3.2078]
[1726242828432,1.03856,2406.8,2406.4,3.2078]
[1726242828631,0.41549,2406.5,2406.0,3.2078]
[1726242828836,4.03425,2407.1,2406.6,0.41545]
[1726242829032,2.9958,2407.1,2406.6,3.2078]
[1726242829233,3.41118,2407.1,2406.6,4.24642]
[1726242829436,2.9958,2407.1,2407.0,0.41539]
[1726242829844,3.41117,2407.1,2407.0,0.41539]
[1726242830038,0.41539,2407.0,2406.9,0.4154]
[1726242830545,0.41541,2406.9,2406.8,0.41542]
[1726242830742,4.03427,2407.1,2406.6,3.2078]
[1726242830743,0.41544,2406.8,2406.6,3.2078]
[1726242830945,0.41544,2406.7,2406.6,3.2078]
[1726242831132,7.1978,2407.2,2406.1,1.03886]
[1726242831133,4.27556597,2408.8,2406.1,3.2078]
[1726242831437,2.8962,2408.7,2408.1,1.54478]
[1726242831638,2.8962,2408.7,2408.4,0.50681]
[1726242831834,2.8962,2408.7,2408.5,0.41512]
[1726242832052,3.3113,2408.7,2408.5,0.92193]
[1726242832236,7.1978,2409.2,2408.5,0.50681]
[1726242832540,5.74577,2409.2,2408.7,0.50681]
[1726242832742,0.41507,2408.9,2408.7,0.50681]
[1726242833038,0.41508,2408.8,2408.7,0.50681]
[1726242834135,4.56628,2408.8,2408.5,0.41513]
[1726242834333,0.41509,2408.7,2408.6,0.50681]
[1726242835445,0.41513,2408.5,2408.3,0.41515]
[1726242835640,1.03766,2408.9,2408.5,0.50681]
[1726242835641,0.41512,2408.6,2408.5,0.50681]
[1726242836535,0.41512,2408.6,2408.3,0.41515]
[1726242836536,0.41513,2408.5,2408.3,0.41515]
[1726242836735,0.41513,2408.5,2408.4,0.92196]
[1726242836941,0.41513,2408.5,2408.4,0.50681]
[1726242838039,0.41513,2408.5,2408.2,3.62297]
[1726242838040,0.41515,2408.4,2408.2,3.62297]
[1726242838348,0.41515,2408.4,2408.3,0.50681]
[1726242838545,0.41515,2408.4,2407.9,3.2078]
[1726242838546,4.152,2408.4,2407.9,3.2078]
[1726242838735,0.41518,2408.2,2408.1,0.922]
[1726242839044,1.03783,2408.5,2408.1,0.922]
[1726242839045,0.41517,2408.3,2408.1,0.922]
[1726242839752,0.41518,2408.2,2408.1,0.50681]
[1726242841649,4.1528,2408.2,2408.0,0.41522]
[1726242841864,0.41519,2408.2,2408.0,0.92202]
[1726242842649,0.4152,2408.1,2408.0,0.50681]
[1726242842851,3.9838,2408.4,2408.0,0.92202]
[1726242843051,0.4152,2408.2,2408.0,0.50681]
[1726242843251,0.4152,2408.2,2408.0,0.92202]
[1726242843547,0.41517,2408.3,2408.1,0.41518]
[1726242844045,2.9459,2408.4,2408.0,0.41522]
[1726242844046,0.41521,2408.1,2408.0,0.41522]
[1726242844247,3.98379,2408.4,2408.0,0.92202]
[1726242844642,0.41519,2408.2,2408.0,0.92202]
[1726242844849,0.41519,2408.2,2408.0,0.50681]
[1726242845150,45.28306106,2409.7,2408.0,6.0]
[1726242845151,3.2078,2409.4,2408.0,6.0]
[1726242845375,3.2078,2409.4,2407.4,0.54174021]
[1726242845376,0.41502,2409.2,2409.0,0.50681]
[1726242845548,2.7474,2409.3,2409.2,0.50681]
[1726242846250,12.8978,2409.3,2409.0,3.2078]
[1726242846451,2.7474,2409.3,2409.1,0.50681]
[1726242846751,2.7474,2409.3,2409.0,3.2078]
[1726242846752,1.3819,2409.3,2409.2,0.92182]
[1726242847050,1.3819,2409.3,2409.2,0.50681]
[1726242847254,1.79689,2409.3,2409.2,0.50681]
[1726242847442,0.41501,2409.2,2409.0,3.2078]
[1726242847643,0.41501,2409.2,2409.1,0.50681]
[1726242847843,0.41503,2409.1,2409.0,3.2078]
[1726242848046,1.3819,2409.3,2409.0,0.50681]
[1726242848353,0.41501,2409.2,2409.0,3.71461]
[1726242848646,0.41502,2409.2,2409.0,0.50681]
[1726242849647,1.3819,2409.3,2409.0,0.50681]
[1726242849854,0.41503,2409.1,2409.0,0.50681]
[1726242850448,0.41503,2409.1,2408.9,3.2078]
[1726242850449,4.1512,2409.1,2408.9,3.2078]
[1726242850641,0.41502,2409.2,2409.0,0.50681]
[1726242850846,0.41503,2409.1,2409.0,0.50681]
[1726242851043,0.41501,2409.2,2409.0,0.50681]
[1726242851245,0.41503,2409.1,2409.0,0.50681]
[1726242851751,0.41502,2409.2,2409.0,0.50681]
[1726242851954,0.41503,2409.1,2409.0,0.50681]
[1726242852552,0.41507,2408.9,2408.6,0.41511]
[1726242852855,0.41505,2409.0,2408.9,0.50681]
[1726242853056,3.2078,2410.4,2410.0,0.41486]
[1726242853250,1.4355,2410.6,2410.2,3.2078]
[1726242853446,1.4355,2410.6,2409.7,3.2078]
[1726242853947,0.4148,2410.4,2409.7,3.2078]
[1726242854150,0.41479,2410.5,2409.7,3.2078]
[1726242854358,0.4148,2410.4,2409.7,3.2078]
[1726242854655,1.4355,2410.6,2409.7,3.2078]
[1726242854864,3.2078,2410.5,2409.7,3.2078]
[1726242855459,7.1978,2410.5,2409.7,3.2078]
[1726242855748,7.1978,2410.5,2409.3,3.2078]
[1726242855749,0.41486,2410.1,2409.3,3.2078]
[1726242855949,0.41486,2410.1,2409.4,3.2078]
[1726242856557,7.1978,2410.5,2409.4,3.2078]
[1726242856856,0.41487,2410.0,2409.4,3.2078]
[1726242857054,1.4096,2410.8,2409.7,3.2078]
[1726242857359,1.92349,2410.5,2409.7,3.2078]
[1726242857559,1.5087,2410.5,2409.7,3.62272]
[1726242857749,1.5087,2410.5,2409.7,3.2078]
[1726242858150,1.9235,2410.5,2409.7,3.2078]
[1726242858357,0.41482,2410.3,2409.7,3.2078]
[1726242858550,0.41481,2410.4,2409.7,3.2078]
[1726242858757,0.41482,2410.3,2409.7,3.2078]
[1726242859059,1.5087,2410.5,2410.0,3.2078]
[1726242859258,1.92349,2410.5,2410.0,3.2078]
[1726242859459,1.5087,2410.5,2410.0,3.2078]
[1726242859656,1.9235,2410.5,2409.7,3.2078]
[1726242859862,0.41481,2410.4,2409.7,3.2078]
[1726242860357,0.41485,2410.2,2409.7,3.2078]
[1726242860570,0.41485,2410.1,2409.7,3.2078]
[1726242860756,0.41484,2410.2,2409.7,3.2078]
[1726242860950,0.41486,2410.1,2409.7,3.2078]
[1726242861258,1.4535,2410.2,2409.7,3.2078]
[1726242861453,1.86834,2410.2,2409.7,3.2078]
[1726242861854,1.4535,2410.2,2409.7,3.2078]
[1726242862255,1.4535,2410.2,2409.7,3.62272]
[1726242862461,1.4535,2410.2,2409.7,3.2078]
[1726242862761,0.41485,2410.1,2409.7,3.2078]
[1726242863077,1.86834,2410.2,2409.7,3.2078]
[1726242863467,0.41482,2410.4,2409.7,3.62271]
[1726242863664,4.5129,2410.6,2409.8,0.4149]
[1726242863860,0.41478,2410.5,2409.7,3.2078]
[1726242864166,0.4148,2410.4,2409.8,0.41489]
[1726242864760,4.5129,2410.6,2409.7,3.2078]
[1726242864761,0.41479,2410.5,2409.7,3.2078]
[1726242864956,0.4148,2410.4,2409.9,0.41488]
[1726242865559,0.41481,2410.4,2410.0,3.2078]
[1726242866663,5.54983,2410.6,2410.0,3.2078]
[1726242866867,1.2377,2410.3,2410.0,3.2078]
[1726242867171,0.41484,2410.2,2410.0,3.2078]
[1726242867764,3.62264,2410.2,2409.6,3.2078]
[1726242868071,3.2078,2410.2,2409.6,3.2078]
[1726242868461,4.4341,2410.2,2409.6,3.2078]
[1726242868967,4.4341,2410.2,2409.6,3.62274]
[1726242869165,4.4341,2410.2,2409.6,3.2078]
[1726242869562,0.4149,2409.9,2409.6,3.2078]
[1726242869762,0.41487,2410.0,2409.6,3.62273]
[1726242869955,4.4341,2410.2,2409.6,3.2078]
[1726242869956,0.41489,2409.9,2409.6,3.2078]
[1726242870565,0.41488,2410.0,2409.6,3.2078]
[1726242870970,0.41489,2409.9,2409.6,3.2078]
[1726242871173,0.41492,2409.7,2409.2,3.62279]
[1726242871471,1.2692,2409.8,2409.2,3.6228]
[1726242871664,0.41493,2409.7,2409.3,0.41499]
[1726242871969,1.2692,2409.8,2409.2,3.2078]
[1726242871970,0.41495,2409.6,2409.2,3.6228]
[1726242872168,1.2692,2409.8,2408.8,3.2078]
[1726242872371,0.41505,2409.0,2408.8,3.2078]
[1726242872575,0.41504,2409.0,2408.8,3.2078]
[1726242872762,2.31761,2409.5,2408.8,3.2078]
[1726242872969,2.31761,2409.5,2408.8,3.62287]
[1726242872970,0.415,2409.3,2408.8,3.62287]
[1726242873167,0.41502,2409.2,2408.8,3.2078]
[1726242873671,4.488,2409.5,2408.8,3.2078]
[1726242873867,0.415,2409.3,2408.8,3.62287]
[1726242874462,0.41499,2409.3,2408.9,0.41505]
[1726242874662,1.2802,2409.5,2408.9,0.41505]
[1726242874663,0.41499,2409.4,2408.9,0.41505]
[1726242874864,1.2802,2409.5,2408.9,0.41505]
[1726242875063,0.41499,2409.3,2408.9,0.41505]
[1726242875268,0.41498,2409.4,2409.0,0.41504]
[1726242876179,0.41498,2409.4,2408.9,0.41505]
[1726242876375,0.41498,2409.4,2409.1,3.2078]
[1726242876566,1.2802,2409.5,2409.1,3.2078]
[1726242876879,0.41503,2409.1,2408.7,3.62289]
[1726242877174,0.41508,2408.8,2408.7,3.2078]
[1726242877388,0.41506,2408.9,2408.3,3.2078]
[1726242877578,0.41506,2408.9,2408.5,0.41512]
[1726242877784,0.41507,2408.9,2408.5,0.41512]
[1726242878273,0.41507,2408.9,2408.6,0.41511]
[1726242878475,0.41507,2408.9,2408.5,0.41512]
[1726242878679,2.29512,2409.0,2408.3,3.2078]
[1726242878976,1.3342,2408.9,2408.5,0.41512]
[1726242879170,1.74927,2408.9,2408.5,0.41512]
[1726242879576,0.41509,2408.8,2408.5,0.41512]
[1726242879779,1.3342,2408.9,2408.3,3.2078]
[1726242879975,2.7041,2408.9,2407.8,3.2078]
[1726242880168,0.41513,2408.5,2408.3,3.2078]
[1726242880369,1.3342,2408.9,2408.3,3.2078]
[1726242880577,1.3342,2408.9,2408.5,0.41512]
[1726242880578,0.41508,2408.8,2408.5,0.41512]
[1726242880778,1.3342,2408.9,2408.3,3.2078]
[1726242880779,0.41511,2408.6,2408.3,3.62296]
[1726242880974,1.3342,2408.9,2408.3,3.2078]
[1726242881181,0.41513,2408.6,2408.3,3.2078]
[1726242881471,0.4151,2408.7,2408.3,3.2078]
[1726242881674,0.41512,2408.6,2408.3,3.2078]
[1726242881873,0.41515,2408.4,2408.0,3.2078]
[1726242882069,0.41516,2408.4,2408.0,3.2078]
[1726242882270,0.41514,2408.5,2408.0,3.2078]
[1726242882579,0.41512,2408.6,2408.1,0.4152]
[1726242882772,0.41513,2408.5,2408.3,3.2078]
[1726242882967,0.41515,2408.4,2408.3,3.2078]
[1726242883172,3.2078,2408.7,2408.0,3.623]
[1726242883173,0.41514,2408.5,2408.0,3.623]
[1726242883373,0.41515,2408.4,2408.0,3.623]
[1726242883673,0.41517,2408.3,2407.6,3.2078]
[1726242883874,4.4683,2408.7,2407.7,3.2078]
[1726242884065,4.4683,2408.7,2408.0,0.41521]
[1726242884066,0.41516,2408.4,2408.0,0.41521]
[1726242884267,0.41516,2408.4,2408.2,3.2078]
[1726242884791,4.4683,2408.7,2408.0,0.41521]
[1726242884792,0.41515,2408.5,2408.0,0.41521]
[1726242885071,4.4683,2408.7,2408.0,0.41521]
[1726242885072,0.41515,2408.4,2408.0,0.41521]
[1726242885281,4.4683,2408.7,2407.9,3.62302]
[1726242885476,0.41516,2408.4,2407.9,3.62302]
[1726242885775,0.41511,2408.6,2408.1,0.41519]
[1726242886080,4.4683,2408.7,2408.1,0.41519]
[1726242886081,0.41513,2408.5,2408.1,0.41519]
[1726242886269,1.2605,2408.7,2407.6,1.03818]
[1726242886270,0.4151,2408.7,2408.3,3.2078]
[1726242886475,0.41511,2408.6,2408.3,3.2078]
[1726242886679,3.2078,2408.8,2408.3,3.2078]
[1726242886977,0.4151,2408.7,2408.3,3.62295]
[1726242888274,3.2078,2409.1,2408.6,3.2078]
[1726242888468,3.2078,2409.1,2408.8,0.41508]
[1726242888469,3.62283,2409.1,2408.8,0.41508]
[1726242888670,3.62283,2409.1,2408.6,3.6229]
[1726242888671,0.41504,2409.0,2408.6,3.6229]
[1726242888870,3.2078,2409.3,2408.6,3.2078]
[1726242889070,0.41507,2408.9,2408.6,3.62291]
[1726242889370,3.2078,2409.3,2408.3,3.54443138]
[1726242889371,1.03757,2409.1,2408.3,3.54443138]
[1726242889574,0.41511,2408.7,2408.4,0.41515]
[1726242889873,0.41511,2408.6,2408.4,3.2078]
[1726242890071,0.41511,2408.7,2408.4,3.62294]
[1726242890273,2.32786,2408.9,2408.3,0.41515]
[1726242890570,0.41511,2408.6,2408.1,3.2078]
[1726242890770,2.32033,2408.8,2408.2,0.41517]
[1726242891176,0.41514,2408.5,2408.2,0.41517]
[1726242891576,1.03779,2408.6,2408.1,3.2078]
[1726242891782,1.03783,2408.5,2407.8,3.2078]
[1726242891977,1.03783,2408.5,2408.0,0.41521]
[1726242891978,0.41519,2408.2,2408.0,0.41521]
[1726242892184,0.41517,2408.3,2407.8,3.2078]
[1726242892385,0.41517,2408.3,2408.0,0.4152]
[1726242892684,0.41517,2408.3,2408.0,0.41521]
[1726242893082,0.41517,2408.3,2408.1,0.4152]
[1726242893285,0.41517,2408.3,2408.0,0.4152]
[1726242893489,0.41517,2408.3,2408.1,0.4152]
[1726242893783,0.41517,2408.3,2408.0,0.4152]
[1726242894370,0.41518,2408.2,2408.0,0.4152]
[1726242894573,0.4152,2408.1,2407.9,0.41523]
[1726242894774,4.4904,2408.8,2407.8,8.23593]
[1726242894775,0.41517,2408.3,2407.8,8.23593]
[1726242894975,0.41517,2408.3,2408.1,3.62298]
[1726242895588,0.41518,2408.2,2408.1,3.2078]
[1726242895883,3.2078,2408.7,2408.1,3.623]
[1726242895884,1.03779,2408.6,2408.1,3.623]
[1726242896084,1.2826,2408.8,2408.1,3.2078]
[1726242896085,1.03783,2408.5,2408.1,3.2078]
[1726242896276,0.41517,2408.3,2408.1,3.2078]
[1726242896479,0.41516,2408.4,2408.2,0.41518]
[1726242896680,1.03783,2408.5,2408.2,0.41518]
[1726242896881,1.03777,2408.7,2408.3,0.41516]
[1726242897087,1.2826,2408.8,2408.4,3.2078]
[1726242897284,0.4151,2408.7,2408.5,0.41512]
[1726242897486,0.4151,2408.7,2408.4,3.2078]
[1726242897785,0.4151,2408.7,2408.5,0.41512]
[1726242897988,1.69768,2408.8,2408.7,0.41509]
[1726242898193,0.4151,2408.7,2408.5,0.41512]
[1726242898486,1.2826,2408.8,2408.4,3.2078]
[1726242898789,0.41513,2408.5,2408.4,3.2078]
[1726242900484,0.41513,2408.5,2408.3,0.41516]
[1726242900696,1.03776,2408.7,2408.3,0.41516]
[1726242900886,1.03776,2408.7,2408.1,3.2078]
[1726242900887,0.41517,2408.3,2408.1,3.2078]
[1726242901086,0.41516,2408.4,2408.2,0.41518]
[1726242901286,0.41516,2408.3,2408.2,0.41518]
[1726242901984,0.41518,2408.2,2408.1,3.2078]
[1726242902193,1.71638,2408.2,2408.1,3.2078]
[1726242902984,4.24561,2408.6,2408.1,3.2078]
[1726242903186,1.3012,2408.5,2408.1,3.2078]
[1726242903388,0.41516,2408.4,2408.3,0.41516]
[1726242903687,0.41516,2408.4,2408.1,3.2078]
[1726242903888,0.41515,2408.4,2408.3,0.41516]
[1726242904189,0.41517,2408.3,2407.9,3.24]
[1726242904380,1.3356,2408.3,2408.1,3.62299]
[1726242904602,0.41518,2408.2,2408.1,3.62299]
[1726242904780,1.3356,2408.3,2408.2,0.41518]
[1726242905383,0.41518,2408.2,2408.1,3.2078]
[1726242905585,1.3356,2408.3,2408.2,0.41518]
[1726242906297,1.75076,2408.3,2408.2,0.41518]
[1726242906595,1.3356,2408.3,2408.2,0.41518]
[1726242906895,0.41518,2408.2,2408.1,3.2078]
[1726242907193,1.75078,2408.3,2408.2,0.41518]
[1726242907395,1.75078,2408.3,2408.1,3.2078]
[1726242907396,0.41518,2408.2,2408.1,3.2078]
[1726242907694,1.75077,2408.3,2408.1,3.2078]
[1726242907895,1.75077,2408.3,2408.1,3.62299]
[1726242908396,0.41518,2408.2,2408.1,3.62299]
[1726242908600,1.3356,2408.3,2408.2,0.41518]
[1726242908893,1.3012,2408.5,2408.4,0.41515]
[1726242909491,1.71633,2408.5,2408.4,0.41515]
[1726242909887,1.3012,2408.5,2408.4,0.41515]
[1726242910289,1.3012,2408.5,2408.4,6.86295]
[1726242910495,0.41508,2408.8,2408.6,0.4151]
[1726242910697,0.4151,2408.7,2408.4,3.2078]
[1726242911188,0.41509,2408.8,2408.4,3.2078]
[1726242911392,1.2605,2408.9,2408.4,3.2078]
[1726242911393,0.41511,2408.7,2408.5,0.41512]
[1726242911889,0.41512,2408.6,2408.4,3.62293]
[1726242912403,0.41513,2408.5,2408.1,3.2078]
[1726242912699,1.2471,2408.4,2408.3,0.41515]
[1726242913200,1.2471,2408.4,2408.3,0.41516]
[1726242914094,1.3397,2408.8,2408.3,1.45308]
[1726242914292,0.4151,2408.7,2408.4,3.2078]
[1726242914705,0.4151,2408.7,2408.5,0.41512]
[1726242914890,1.74278,2408.8,2408.6,0.4151]
[1726242915094,1.74278,2408.8,2408.5,0.41512]
[1726242915095,0.41509,2408.7,2408.5,0.41512]
[1726242915397,4.24508,2409.8,2408.7,1.03774]
[1726242915595,0.41501,2409.2,2409.0,0.41503]
[1726242915797,0.41503,2409.1,2409.0,0.41503]
[1726242916300,0.41502,2409.2,2408.8,3.2078]
[1726242916493,0.41502,2409.2,2409.0,0.41504]
[1726242916698,0.41504,2409.1,2408.9,0.41504]
[1726242916998,0.41504,2409.1,2408.8,3.2078]
[1726242916999,0.41504,2409.1,2409.0,0.41504]
[1726242917402,3.6782,2409.3,2409.0,0.41504]
[1726242917697,2.6407,2409.3,2408.8,3.2078]
[1726242917897,0.41502,2409.2,2409.1,3.2078]
[1726242918107,2.6407,2409.3,2409.1,0.41501]
[1726242918108,1.7427,2409.3,2409.1,0.41501]
[1726242918304,1.7427,2409.3,2408.8,4.24549]
[1726242918488,1.3277,2409.3,2408.8,3.2078]
[1726242918796,1.3277,2409.3,2409.2,0.41501]
[1726242919109,1.74269,2409.3,2409.2,0.41501]
[1726242919601,0.41501,2409.2,2409.1,3.62282]
[1726242919892,0.41501,2409.2,2409.1,3.62281]
[1726242920101,0.41501,2409.2,2409.1,3.2078]
[1726242920496,0.41501,2409.2,2409.1,3.62283]
[1726242920694,5.18873,2409.2,2408.8,3.2078]
[1726242920895,0.41509,2408.8,2408.7,0.41508]
[1726242921202,1.03761,2409.0,2408.8,0.41508]
[1726242921203,0.41507,2408.9,2408.8,0.41508]
[1726242921603,0.41508,2408.8,2408.7,3.62288]
[1726242921802,2.32291,2409.0,2408.7,3.62288]
[1726242921803,2.32291,2409.0,2408.7,3.2078]
[1726242922399,1.2853,2409.0,2408.9,0.41506]
[1726242922601,1.3277,2409.3,2408.7,7.48553]
[1726242922906,1.3277,2409.3,2409.1,0.41502]
[1726242922907,0.41502,2409.2,2409.1,0.41502]
[1726242923095,1.3277,2409.3,2408.9,3.24]
[1726242923614,0.41502,2409.2,2409.1,0.41502]
[1726242923806,0.41501,2409.2,2409.1,0.41501]
[1726242924889,1.3277,2409.3,2409.2,0.41501]
[1726242925098,1.74269,2409.3,2409.2,0.41501]
[1726242925305,1.3277,2409.3,2409.2,0.41501]
[1726242925698,1.74269,2409.3,2409.2,0.41501]
[1726242926097,1.3277,2409.3,2409.0,3.2078]
[1726242926295,0.41502,2409.2,2409.1,0.41502]
[1726242926499,1.3277,2409.3,2409.0,3.62284]
[1726242926500,0.41503,2409.1,2409.0,3.62284]
[1726242926702,0.41502,2409.2,2409.1,0.41501]
[1726242928089,0.41502,2409.2,2408.9,3.2078]
[1726242928090,0.41504,2409.1,2409.0,0.41504]
[1726242928502,0.41503,2409.1,2408.7,3.24]
[1726242928805,0.41508,2408.8,2408.7,3.65507]
[1726242929008,0.41508,2408.8,2408.7,0.41507]
[1726242929301,0.41511,2408.6,2408.5,0.41511]
[1726242929608,1.51461,2408.7,2408.6,0.41511]
[1726242930495,1.51461,2408.7,2408.6,3.62291]
[1726242930800,2.55235,2408.7,2408.6,3.2078]
[1726242930989,1.51461,2408.7,2408.6,3.2078]
[1726242931190,1.0995,2408.7,2408.3,6.4478]
[1726242931396,0.41512,2408.6,2408.5,0.41512]
[1726242931594,1.03779,2408.6,2408.3,3.62295]
[1726242931790,1.03779,2408.6,2408.3,3.2078]
[1726242931791,0.41515,2408.4,2408.3,3.2078]
[1726242932603,3.24,2408.5,2408.1,0.41519]
[1726242932604,0.41517,2408.3,2408.1,0.41519]
[1726242932995,0.41517,2408.3,2407.8,3.2078]
[1726242932996,1.53035,2408.4,2407.8,3.2078]
[1726242933310,0.41517,2408.3,2408.0,0.41521]
[1726242933801,0.41519,2408.2,2407.9,0.41522]
[1726242934101,0.41519,2408.2,2407.3,2.51783359]
[1726242934102,3.24,2408.0,2407.1,3.62317]
[1726242934305,1.2069,2408.1,2407.8,0.41525]
[1726242934306,1.6221,2408.1,2407.8,0.41525]
[1726242934509,1.2069,2408.1,2408.0,0.41522]
[1726242935705,1.6221,2408.1,2407.8,0.41524]
[1726242936095,0.41522,2408.0,2407.7,3.2078]
[1726242936301,1.2069,2408.1,2407.7,3.2078]
[1726242936500,1.1272,2407.9,2407.7,3.62306]
[1726242936702,1.1272,2407.9,2407.7,3.2078]
[1726242936906,1.54244,2407.9,2407.7,3.2078]
[1726242937114,0.41525,2407.8,2407.7,3.2078]
[1726242937604,4.56885,2407.8,2407.5,0.4153]
[1726242937808,0.41525,2407.8,2407.5,0.4153]
[1726242938007,0.41525,2407.8,2407.6,0.41528]
[1726242938212,3.24,2407.7,2407.3,3.2078]
[1726242938401,0.41531,2407.5,2407.0,3.2078]
[1726242938708,0.41531,2407.5,2407.2,0.41535]
[1726242939005,1.53382,2407.4,2407.1,0.41535]
[1726242939308,1.1185,2407.4,2407.0,6.4478]
[1726242939507,1.53382,2407.4,2407.2,0.41534]
[1726242940002,1.53382,2407.4,2407.2,0.41535]
[1726242940206,1.1578,2407.3,2407.0,6.86317]
[1726242940398,1.57315,2407.3,2407.1,0.41537]
[1726242940607,1.1578,2407.3,2407.0,3.2078]
[1726242940912,1.1578,2407.3,2407.1,0.41536]
[1726242940913,1.57315,2407.3,2407.1,0.41536]
[1726242941506,1.57315,2407.3,2407.0,3.2078]
[1726242941507,1.1578,2407.3,2407.0,3.2078]
[1726242941897,1.1578,2407.3,2407.2,0.41535]
[1726242942102,1.57314,2407.3,2407.2,0.41535]
[1726242942416,1.1578,2407.3,2407.2,0.41535]
[1726242942619,1.1185,2407.4,2407.3,0.41534]
[1726242942911,1.1185,2407.4,2407.3,6.86314]
[1726242943102,1.1185,2407.4,2407.3,3.62314]
[1726242944301,1.53382,2407.4,2407.3,3.62314]
[1726242944507,1.1185,2407.4,2407.3,3.62314]
[1726242944709,1.53382,2407.4,2407.3,3.2078]
[1726242944905,1.1185,2407.4,2407.0,3.2078]
[1726242945108,1.53383,2407.4,2407.0,3.2078]
[1726242945313,1.53383,2407.4,2407.3,0.41534]
[1726242945314,2.284,2407.4,2407.3,0.41534]
[1726242945819,2.69933,2407.4,2407.0,3.2078]
[1726242946110,2.69933,2407.4,2407.2,0.41534]
[1726242946313,2.284,2407.4,2407.0,3.2078]
[1726242946505,2.284,2407.4,2406.7,0.33697864]
[1726242946506,2.284,2407.4,2407.3,3.62314]
[1726242946706,1.1185,2407.4,2407.3,3.62314]
[1726242948110,1.53382,2407.4,2407.3,3.2078]
[1726242948304,5.81212,2407.4,2407.3,3.2078]
[1726242948917,6.94442,2407.4,2407.3,3.2078]
[1726242949217,2.2508,2407.4,2407.3,3.62314]
[1726242949516,1.1185,2407.4,2407.3,3.62314]
[1726242951011,1.53382,2407.4,2407.3,3.2078]
[1726242951614,2.57212,2407.4,2407.3,3.2078]
[1726242952006,5.81212,2407.4,2407.3,3.2078]
[1726242953317,1.1185,2407.4,2407.3,3.62314]
[1726242956217,1.1185,2407.4,2407.3,3.2078]
[1726242956218,1.53382,2407.4,2407.3,3.2078]
[1726242956725,1.53382,2407.4,2407.3,3.62314]
[1726242956922,1.53382,2407.4,2407.3,3.2078]
[1726242957120,2.57212,2407.4,2407.3,3.2078]
[1726242958219,3.74492,2407.4,2407.3,3.2078]
[1726242958423,0.41537,2407.1,2407.0,3.62317]
[1726242958723,0.41537,2407.1,2407.0,3.2078]
[1726242958921,0.41537,2407.1,2407.0,3.62319]
[1726242959926,0.41537,2407.1,2407.0,3.2078]
[1726242960124,0.41543,2406.8,2406.5,3.2078]
[1726242960327,0.41543,2406.8,2406.3,1.37677049]
[1726242960525,1.1415,2406.7,2406.2,4.2466]
[1726242960926,1.55694,2406.7,2406.6,0.41546]
[1726242961130,1.1415,2406.7,2406.6,0.41546]
[1726242961522,1.55694,2406.7,2406.6,0.41546]
[1726242962026,1.1415,2406.7,2406.6,0.41546]
[1726242962221,0.41546,2406.6,2406.5,3.2078]
[1726242962423,0.41549,2406.4,2406.3,0.4155]
[1726242962622,5.42013,2406.7,2406.3,0.4155]
[1726242962828,0.4155,2406.4,2406.3,0.41551]
[1726242963331,1.1415,2406.7,2406.0,4.24668]
[1726242963526,1.1415,2406.7,2405.9,3.4429071]
[1726242963527,1.1415,2406.7,2406.6,0.41546]
[1726242964728,1.03826,2407.5,2407.2,0.41534]
[1726242964919,1.03826,2407.5,2406.8,1.03856]
[1726242964920,0.41536,2407.2,2407.1,0.41536]
[1726242965122,3.65534,2407.3,2407.2,0.41535]
[1726242965521,3.24,2407.3,2407.2,0.41535]
[1726242965724,3.65534,2407.3,2407.2,0.41535]
[1726242965925,0.41536,2407.2,2407.1,0.41536]
[1726242966124,3.65535,2407.3,2407.2,0.41535]
[1726242966522,0.41536,2407.2,2407.1,0.41536]
[1726242966922,3.24,2407.3,2406.7,3.53061534]
[1726242967226,3.24,2407.3,2406.7,3.2078]
[1726242967227,0.41537,2407.1,2406.7,3.2078]
[1726242967537,0.41537,2407.1,2407.0,0.41539]
[1726242967926,0.41542,2406.8,2406.7,0.41543]